fUSD/lending_fUSD_20250811
["ID","MTS","AMOUNT","RATE_DAILY","PERIOD"]
[378677418,1754956240222,-400.0,0.00016456,2]
[378677419,1754956240231,-492.38,0.00016456,2]
[378677420,1754956240240,-400.0,0.00016456,2]
[378677421,1754956240249,-517.44,0.00016456,2]
[378677422,1754956240258,-400.0,0.00016456,2]
[378677423,1754956240268,-458.23,0.00016456,2]
[378677424,1754956240277,-424.29,0.00016456,2]
[378677425,1754956240286,-400.0,0.00016456,2]
[378677426,1754956240295,-400.0,0.00016456,2]
[378677427,1754956240305,-151.0,0.00016456,2]
[378677428,1754956240314,-519.78,0.00016456,2]
[378677429,1754956240323,-400.0,0.00016456,2]
[378677430,1754956240332,-400.25,0.00016456,2]
[378677431,1754956240341,-495.99,0.00016456,2]
[378677432,1754956240350,-400.0,0.00016456,2]
[378677433,1754956240359,-400.0,0.00016456,2]
[378677434,1754956240368,-400.0,0.00016456,2]
[378677435,1754956240377,-400.0,0.00016456,2]
[378677436,1754956240386,-400.0,0.00016456,2]
[378677437,1754956240395,-400.0,0.00016456,2]
[378677438,1754956240404,-400.0,0.00016456,2]
[378677439,1754956240413,-400.0,0.00016456,2]
[378677440,1754956240422,-400.0,0.00016456,2]
[378677441,1754956240431,-400.0,0.00016456,2]
[378677442,1754956240441,-400.0,0.00016456,2]
[378677443,1754956240450,-400.0,0.00016456,2]
[378677444,1754956240459,-474.56,0.00016456,2]
[378677445,1754956240469,-400.0,0.00016456,2]
[378677446,1754956240478,-400.0,0.00016456,2]
[378677447,1754956240487,-400.0,0.00016456,2]
[378677448,1754956240495,-400.0,0.00016456,2]
[378677449,1754956240505,-400.0,0.00016456,2]
[378677451,1754956240514,-400.0,0.00016456,2]
[378677453,1754956240523,-400.0,0.00016456,2]
[378677455,1754956240533,-202.6315174,0.00016456,2]
[378677457,1754956240542,-400.0,0.00016456,2]
[378677459,1754956240551,-400.0,0.00016456,2]
[378677461,1754956240560,-400.0,0.00016456,2]
[378677463,1754956240570,-400.0,0.00016456,2]
[378677465,1754956240579,-400.0,0.00016456,2]
[378677467,1754956240588,-400.0,0.00016456,2]
[378677469,1754956240598,-357.40649127,0.00016456,2]
[378677471,1754956240608,-400.0,0.00016456,2]
[378677473,1754956240618,-400.0,0.00016456,2]
[378677475,1754956240627,-400.0,0.00016456,2]
[378677477,1754956240636,-400.0,0.00016456,2]
[378677479,1754956240645,-400.0,0.00016456,2]
[378677481,1754956240654,-662.22,0.00016456,2]
[378677483,1754956240663,-459.41,0.00016456,2]
[378677486,1754956240673,-400.0,0.00016456,2]
[378677488,1754956240687,-400.0,0.00016456,2]
[378677490,1754956240699,-400.0,0.00016456,2]
[378677492,1754956240708,-400.0,0.00016456,2]
[378677493,1754956240718,-400.0,0.00016456,2]
[378677495,1754956240730,-400.0,0.00016456,2]
[378677497,1754956240739,-400.0,0.00016456,2]
[378677499,1754956240748,-400.0,0.00016456,2]
[378677501,1754956240758,-400.0,0.00016456,2]
[378677503,1754956240767,-400.0,0.00016456,2]
[378677506,1754956240780,-400.0,0.00016456,2]
[378677507,1754956240789,-400.0,0.00016456,2]
[378677510,1754956240798,-400.0,0.00016456,2]
[378677523,1754956240913,-400.0,0.00016456,2]
[378677526,1754956240934,-400.0,0.00016456,2]
[378677528,1754956240944,-400.0,0.00016456,2]
[378677530,1754956240954,-402.18175113,0.00016456,2]
[378677532,1754956240963,-400.0,0.00016456,2]
[378677534,1754956240972,-400.0,0.00016456,2]
[378677536,1754956240982,-400.0,0.00016456,2]
[378677538,1754956240991,-401.39519161,0.00016456,2]
[378677540,1754956241001,-400.0,0.00016456,2]
[378677543,1754956241011,-470.66,0.00016456,2]
[378677545,1754956241020,-630.29,0.00016456,2]
[378677547,1754956241029,-401.86,0.00016456,2]
[378677549,1754956241039,-400.0,0.00016456,2]
[378677551,1754956241048,-400.0,0.00016456,2]
[378677553,1754956241058,-400.0,0.00016456,2]
[378677555,1754956241067,-437.19,0.00016456,2]
[378677557,1754956241076,-400.0,0.00016456,2]
[378677559,1754956241086,-412.67,0.00016456,2]
[378677561,1754956241095,-400.0,0.00016456,2]
[378677563,1754956241105,-400.0,0.00016456,2]
[378677565,1754956241114,-400.0,0.00016456,2]
[378677567,1754956241123,-400.0,0.00016456,2]
[378677569,1754956241133,-400.0,0.00016456,2]
[378677571,1754956241142,-400.0,0.00016456,2]
[378677573,1754956241151,-400.0,0.00016456,2]
[378677575,1754956241161,-706.12,0.00016456,2]
[378677577,1754956241171,-400.0,0.00016456,2]
[378677579,1754956241180,-452.36,0.00016456,2]
[378677581,1754956241189,-400.0,0.00016456,2]
[378677583,1754956241199,-400.0,0.00016456,2]
[378677585,1754956241208,-400.0,0.00016456,2]
[378677587,1754956241217,-400.0,0.00016456,2]
[378677589,1754956241227,-400.0,0.00016456,2]
[378677591,1754956241238,-415.88,0.00016456,2]
[378677593,1754956241247,-748.93,0.00016456,2]
[378677595,1754956241256,-448.29,0.00016456,2]
[378677597,1754956241266,-400.0,0.00016456,2]
[378677599,1754956241275,-434.91,0.00016456,2]
[378677601,1754956241285,-211.89101233,0.00016456,2]
[378677603,1754956241294,-400.0,0.00016456,2]
[378677605,1754956241303,-400.0,0.00016456,2]
[378677607,1754956241313,-512.52,0.00016456,2]
[378677609,1754956241323,-400.0,0.00016456,2]
[378677611,1754956241333,-488.54,0.00016456,2]
[378677613,1754956241342,-400.0,0.00016456,2]
[378677615,1754956241351,-400.0,0.00016456,2]
[378677617,1754956241361,-400.0,0.00016456,2]
[378677620,1754956241370,-400.0,0.00016456,2]
[378677622,1754956241379,-400.0,0.00016456,2]
[378677623,1754956241389,-400.0,0.00016456,2]
[378677626,1754956241398,-400.0,0.00016456,2]
[378677628,1754956241408,-531.95,0.00016456,2]
[378677630,1754956241418,-400.0,0.00016456,2]
[378677632,1754956241427,-400.0,0.00016456,2]
[378677633,1754956241436,-280.0,0.00016456,2]
[378677636,1754956241445,-575.03,0.00016456,2]
[378677638,1754956241455,-400.0,0.00016456,2]
[378677640,1754956241466,-485.19,0.00016456,2]
[378677642,1754956241475,-151.0,0.00016456,2]
[378677644,1754956241484,-538.53,0.00016456,2]
[378677646,1754956241493,-521.43513879,0.00016456,2]
[378677648,1754956241502,-400.0,0.00016456,2]
[378677650,1754956241511,-728.67,0.00016456,2]
[378677652,1754956241521,-400.0,0.00016456,2]
[378677654,1754956241530,-217.52382388,0.00016456,2]
[378677656,1754956241540,-530.0,0.00016456,2]
[378677658,1754956241549,-400.0,0.00016456,2]
[378677660,1754956241558,-441.25,0.00016456,2]
[378677662,1754956241567,-585.0,0.00016456,2]
[378677664,1754956241576,-400.0,0.00016456,2]
[378677666,1754956241585,-400.0,0.00016456,2]
[378677668,1754956241595,-564.63,0.00016456,2]
[378677670,1754956241604,-1142.47,0.00016456,2]
[378677672,1754956241614,-400.0,0.00016456,2]
[378677674,1754956241623,-955.21,0.00016456,2]
[378677676,1754956241632,-420.37,0.00016456,2]
[378677678,1754956241641,-596.74,0.00016456,2]
[378677680,1754956241651,-2603.500865,0.00016456,2]
[378677682,1754956241660,-400.0,0.00016456,2]
[378677684,1754956241669,-730.89,0.00016456,2]
[378677686,1754956241680,-400.0,0.00016456,2]
[378677688,1754956241690,-2603.500863,0.00016456,2]
[378677690,1754956241699,-400.0,0.00016456,2]
[378677692,1754956241708,-400.0,0.00016456,2]
[378677694,1754956241720,-507.68,0.00016456,2]
[378677696,1754956241739,-400.0,0.00016456,2]
[378677698,1754956241756,-1320.38,0.00016456,2]
[378677700,1754956241771,-400.0,0.00016456,2]
[378677702,1754956241780,-400.0,0.00016456,2]
[378677704,1754956241790,-400.0,0.00016456,2]
[378677706,1754956241799,-400.0,0.00016456,2]
[378677708,1754956241809,-1116.62,0.00016456,2]
[378677710,1754956241818,-738.94,0.00016456,2]
[378677712,1754956241828,-400.0,0.00016456,2]
[378677714,1754956241837,-400.0,0.00016456,2]
[378677715,1754956241847,-400.0,0.00016456,2]
[378677717,1754956241856,-937.64,0.00016456,2]
[378677719,1754956241865,-844.9,0.00016456,2]
[378677721,1754956241875,-1564.26,0.00016456,2]
[378677723,1754956241884,-441.32,0.00016456,2]
[378677725,1754956241893,-491.5,0.00016456,2]
[378677727,1754956241903,-618.68,0.00016456,2]
[378677729,1754956241912,-400.0,0.00016456,2]
[378677731,1754956241921,-400.0,0.00016456,2]
[378677733,1754956241931,-954.6,0.00016456,2]
[378677735,1754956241940,-864.95,0.00016456,2]
[378677737,1754956241949,-400.0,0.00016456,2]
[378677739,1754956241959,-435.68896628,0.00016456,2]
[378677741,1754956241968,-828.48,0.00016456,2]
[378677743,1754956241978,-400.0,0.00016456,2]
[378677745,1754956241987,-729.2,0.00016456,2]
[378677747,1754956241997,-482.38,0.00016456,2]
[378677749,1754956242007,-400.0,0.00016456,2]
[378677751,1754956242016,-1378.77,0.00016456,2]
[378677753,1754956242026,-400.0,0.00016456,2]
[378677755,1754956242036,-617.63,0.00016456,2]
[378677757,1754956242045,-400.0,0.00016456,2]
[378677758,1754956242054,-400.0,0.00016456,2]
[378677760,1754956242063,-400.0,0.00016456,2]
[378677762,1754956242072,-400.0,0.00016456,2]
[378677764,1754956242081,-581.58,0.00016456,2]
[378677766,1754956242090,-400.0,0.00016456,2]
[378677768,1754956242100,-1006.58,0.00016456,2]
[378677770,1754956242109,-400.0,0.00016456,2]
[378677772,1754956242119,-400.0,0.00016456,2]
[378677774,1754956242128,-474.49097146,0.00016456,2]
[378677776,1754956242137,-1521.51,0.00016456,2]
[378677778,1754956242146,-400.0,0.00016456,2]
[378677780,1754956242155,-400.0,0.00016456,2]
[378677782,1754956242165,-400.0,0.00016456,2]
[378677784,1754956242174,-9889.3,0.00016456,2]
[378677786,1754956242182,-1035.58,0.00016456,2]
[378677788,1754956242191,-419.44,0.00016456,2]
[378677790,1754956242200,-400.0,0.00016456,2]
[378677791,1754956242210,-1317.42,0.00016456,2]
[378677793,1754956242219,-551.51,0.00016456,2]
[378677795,1754956242228,-400.0,0.00016456,2]
[378677797,1754956242238,-556.94,0.00016456,2]
[378677799,1754956242247,-2001.92,0.00016456,2]
[378677801,1754956242256,-400.0,0.00016456,2]
[378677803,1754956242266,-1260.67,0.00016456,2]
[378677805,1754956242275,-400.0,0.00016456,2]
[378677807,1754956242285,-676.12,0.00016456,2]
[378677809,1754956242295,-544.05,0.00016456,2]
[378677811,1754956242305,-400.0,0.00016456,2]
[378677813,1754956242314,-400.0,0.00016456,2]
[378677815,1754956242323,-400.0,0.00016456,2]
[378677817,1754956242332,-400.0,0.00016456,2]
[378677819,1754956242342,-400.0,0.00016456,2]
[378677821,1754956242351,-400.0,0.00016456,2]
[378677823,1754956242361,-400.0,0.00016456,2]
[378677825,1754956242370,-400.0,0.00016456,2]
[378677827,1754956242379,-770.27,0.00016456,2]
[378677829,1754956242388,-527.17,0.00016456,2]
[378677831,1754956242398,-425.25,0.00016456,2]
[378677833,1754956242407,-423.79,0.00016456,2]
[378677835,1754956242417,-400.0,0.00016456,2]
[378677837,1754956242426,-400.0,0.00016456,2]
[378677839,1754956242435,-400.0,0.00016456,2]
[378677841,1754956242445,-400.0,0.00016456,2]
[378677843,1754956242454,-474.89,0.00016456,2]
[378677845,1754956242463,-535.38,0.00016456,2]
[378677847,1754956242473,-400.0,0.00016456,2]
[378677849,1754956242483,-870.74,0.00016456,2]
[378677851,1754956242492,-1123.19,0.00016456,2]
[378677853,1754956242501,-762.46,0.00016456,2]
[378677854,1754956242511,-594.22,0.00016456,2]
[378677856,1754956242520,-400.0,0.00016456,2]
[378677858,1754956242530,-400.0,0.00016456,2]
[378677860,1754956242539,-410.08,0.00016456,2]
[378677862,1754956242548,-400.0,0.00016456,2]
[378677864,1754956242557,-1414.95,0.00016456,2]
[378677866,1754956242567,-400.0,0.00016456,2]
[378677868,1754956242577,-400.0,0.00016456,2]
[378677869,1754956242586,-400.0,0.00016456,2]
[378677870,1754956242595,-459.2,0.00016456,2]
[378677871,1754956242604,-827.03,0.00016456,2]
[378677872,1754956242614,-400.0,0.00016456,2]
[378677873,1754956242624,-1165.46,0.00016456,2]
[378677874,1754956242633,-400.0,0.00016456,2]
[378677875,1754956242642,-400.0,0.00016456,2]
[378677876,1754956242651,-470.66,0.00016456,2]
[378677877,1754956242661,-400.0,0.00016456,2]
[378677878,1754956242671,-1120.56,0.00016456,2]
[378677879,1754956242683,-400.0,0.00016456,2]
[378677880,1754956242693,-400.0,0.00016456,2]
[378677881,1754956242702,-400.0,0.00016456,2]
[378677882,1754956242711,-400.0,0.00016456,2]
[378677883,1754956242721,-6234.86,0.00016456,2]
[378677884,1754956242730,-400.0,0.00016456,2]
[378677885,1754956242740,-400.0,0.00016456,2]
[378677886,1754956242749,-400.0,0.00016456,2]
[378677887,1754956242758,-1539.44,0.00016456,2]
[378677888,1754956242768,-151.0,0.00016457,2]
[378677889,1754956242778,-151.0,0.00016457,2]
[378677890,1754956242788,-151.0,0.00016457,2]
[378677891,1754956242798,-151.0,0.00016457,2]
[378677892,1754956242807,-512.895501,0.00016457,2]
[378677893,1754956242817,-512.895501,0.00016457,2]
[378677894,1754956242827,-512.895501,0.00016457,2]
[378677895,1754956242838,-512.895501,0.00016457,2]
[378677896,1754956242848,-390.339574,0.00016457,2]
[378677897,1754956242857,-390.339574,0.00016457,2]
[378677898,1754956242866,-390.339574,0.00016457,2]
[378677899,1754956242875,-390.339576,0.00016457,2]
[378677900,1754956242884,-425.01,0.00016457,2]
[378677901,1754956242894,-619.28,0.00016457,2]
[378677902,1754956242903,-784.54,0.00016457,2]
[378677903,1754956242912,-400.0,0.00016457,2]
[378677904,1754956242922,-571.88,0.00016457,2]
[378677905,1754956242931,-573.13,0.00016457,2]
[378677906,1754956242941,-400.0,0.00016457,2]
[378677907,1754956242950,-1164.33,0.00016457,2]
[378677908,1754956242959,-1531.61,0.00016457,2]
[378677909,1754956242969,-704.09,0.00016457,2]
[378677910,1754956242979,-400.0,0.00016457,2]
[378677911,1754956242988,-1024.62,0.00016457,2]
[378677912,1754956242998,-6267.71,0.00016457,2]
[378677913,1754956243007,-643.34,0.00016457,2]
[378677914,1754956243017,-818.34,0.00016457,2]
[378677915,1754956243027,-1562.48,0.00016457,2]
[378677916,1754956243037,-869.54,0.00016457,2]
[378677917,1754956243047,-764.15,0.00016457,2]
[378677919,1754956243057,-1434.28,0.00016457,2]
[378677920,1754956243066,-400.0,0.00016457,2]
[378677922,1754956243076,-496.88,0.00016457,2]
[378677923,1754956243085,-400.0,0.00016457,2]
[378677936,1754956243367,-756.23,0.00016457,2]
[378677937,1754956243377,-1172.86,0.00016457,2]
[378677938,1754956243386,-400.0,0.00016457,2]
[378677939,1754956243395,-789.48,0.00016457,2]
[378677940,1754956243405,-532.9,0.00016457,2]
[378677941,1754956243414,-926.19,0.00016457,2]
[378677942,1754956243423,-554.88,0.00016457,2]
[378677943,1754956243433,-410.31,0.00016457,2]
[378677944,1754956243442,-842.86497659,0.00016458,2]
[378677945,1754956243451,-457.87080987,0.00016458,2]
[378677946,1754956243460,-211.73953792,0.00016458,2]
[378677947,1754956243469,-160.0,0.00016458,2]
[378677948,1754956243478,-500.0,0.00016473,2]
[378677949,1754956243488,-500.0,0.00016473,2]
[378677950,1754956243497,-500.0,0.00016473,2]
[378677951,1754956243507,-500.0,0.00016473,2]
[378677952,1754956243516,-508.04139182,0.00016473,2]
[378677953,1754956243526,-500.0,0.00016473,2]
[378677954,1754956243535,-500.0,0.00016473,2]
[378677955,1754956243545,-500.0,0.00016473,2]
[378677956,1754956243554,-500.0,0.00016473,2]
[378677957,1754956243564,-500.0,0.00016473,2]
[378677958,1754956243573,-500.0,0.00016473,2]
[378677959,1754956243582,-500.0,0.00016473,2]
[378677960,1754956243591,-200.59887983,0.00016473,2]
[378677961,1754956243601,-2434.74389024,0.00016493,2]
[378677963,1754956243610,-1000.0,0.00016499,2]
[378677965,1754956243620,-1185.0,0.000165,2]
[378677967,1754956243629,-56770.0,0.00016502,2]
[378677969,1754956243639,-22813.7029812,0.00016502,2]
[378677971,1754956243649,-7176.2233369,0.00016502,2]
[378677973,1754956243658,-25757.1336281,0.00016502,2]
[378677975,1754956243668,-15896.3421536,0.00016502,2]
[378677977,1754956243680,-5494.3132553,0.00016502,2]
[378677979,1754956243690,-6406.5266598,0.00016502,2]
[378677981,1754956243699,-151.0,0.00016504,2]
[378677983,1754956243709,-215.21788,0.00016504,2]
[378677985,1754956243719,-512.895501,0.00016504,2]
[378677987,1754956243729,-512.895501,0.00016504,2]
[378677988,1754956243738,-2151.33,0.0001651,2]
[378677989,1754956243748,-168.67,0.00016512,2]
[378677990,1754956243758,-150.0,0.00016536,2]
[378677991,1754956243768,-2524.82941417,0.00016548,2]
[378677992,1754956243777,-462.81945389,0.00016569,2]
[378677993,1754956243787,-500.0,0.00016575,2]
[378677994,1754956243797,-8354.32389157,0.00016584,2]
[378677995,1754956243807,-1424.84,0.0001659,2]
[378677996,1754956243816,-1000.0,0.00016599,2]
[378677997,1754956243825,-150.0,0.000166,2]
[378677998,1754956243835,-150.0,0.000166,2]
[378677999,1754956243844,-813.52,0.000166,2]
[378678000,1754956243853,-342.87,0.000166,2]
[378678001,1754956243863,-1076.3,0.000166,2]
[378678002,1754956243872,-538.3,0.000166,2]
[378678003,1754956243882,-538.3,0.000166,2]
[378678004,1754956243891,-785.98,0.000166,2]
[378678005,1754956243900,-705.92,0.000166,2]
[378678006,1754956243909,-283.22,0.000166,2]
[378678007,1754956243920,-460.81,0.000166,2]
[378678008,1754956243929,-359.87,0.000166,2]
[378678010,1754956243939,-797.4,0.000166,2]
[378678012,1754956243948,-467.96,0.000166,2]
[378678015,1754956243963,-359.87,0.000166,2]
[378678017,1754956243974,-797.4,0.000166,2]
[378678019,1754956243984,-467.96,0.000166,2]
[378678021,1754956243993,-1162.61,0.000166,2]
[378678023,1754956244002,-467.96,0.000166,2]
[378678025,1754956244012,-359.87,0.000166,2]
[378678027,1754956244021,-797.4,0.000166,2]
[378678029,1754956244030,-359.87,0.000166,2]
[378678031,1754956244040,-467.96,0.000166,2]
[378678033,1754956244049,-467.96,0.000166,2]
[378678035,1754956244058,-359.87,0.000166,2]
[378678037,1754956244067,-508.77,0.000166,2]
[378678039,1754956244076,-538.3,0.000166,2]
[378678041,1754956244086,-165.73,0.000166,2]
[378678043,1754956244095,-173.27,0.000166,2]
[378678045,1754956244104,-2618.2481025,0.00016603,2]
[378678047,1754956244113,-150.0,0.00016616,2]
[378678049,1754956244123,-690.61129211,0.00016621,2]
[378678051,1754956244132,-1253.0,0.00016624,2]
[378678053,1754956244141,-957.0,0.00016624,2]
[378678055,1754956244150,-810.0,0.00016624,2]
[378678057,1754956244160,-3367.0,0.00016624,2]
[378678059,1754956244169,-1043.0,0.00016624,2]
[378678061,1754956244178,-565.0,0.00016624,2]
[378678063,1754956244187,-2027.0,0.00016624,2]
[378678065,1754956244197,-598.0,0.00016624,2]
[378678067,1754956244207,-1295.0,0.00016624,2]
[378678069,1754956244216,-1171.0,0.00016624,2]
[378678071,1754956244225,-893.0,0.00016624,2]
[378678073,1754956244234,-1654.0,0.00016624,2]
[378678075,1754956244244,-4145.0,0.00016624,2]
[378678077,1754956244253,-716.0,0.00016624,2]
[378678079,1754956244263,-150.0,0.00016628,2]
[378678081,1754956244272,-150.0,0.00016644,2]
[378678083,1754956244281,-462.81945389,0.00016646,2]
[378678085,1754956244290,-150.0,0.00016647,2]
[378678087,1754956244300,-151.0,0.00016652,2]
[378678089,1754956244309,-512.895501,0.00016652,2]
[378678091,1754956244318,-512.895501,0.00016652,2]
[378678093,1754956244331,-2715.12328229,0.00016658,2]
[378678095,1754956244340,-1000.0,0.0001667,2]
[378678097,1754956244349,-1703.9306701,0.0001667,2]
[378678099,1754956244358,-150.0,0.00016688,2]
[378678101,1754956244367,-150.0,0.000167,2]
[378678103,1754956244377,-150.0,0.000167,2]
[378678105,1754956244386,-150.0,0.00016706,2]
[378678107,1754956244396,-410.35685646,0.00016712,2]
[378678109,1754956244405,-150.0,0.00016712,2]
[378678111,1754956244415,-150.0,0.00016712,2]
[378678113,1754956244424,-500.0,0.00016712,2]
[378678115,1754956244434,-150.0,0.00016712,2]
[378678117,1754956244444,-500.0,0.00016712,2]
[378678119,1754956244454,-500.0,0.00016712,2]
[378678121,1754956244463,-512.895501,0.00016712,2]
[378678123,1754956244473,-512.895501,0.00016712,2]
[378678125,1754956244483,-176.22,0.00016712,2]
[378678127,1754956244492,-2815.58284374,0.00016713,2]
[378678129,1754956244501,-400.0,0.00016719,2]
[378678131,1754956244513,-400.0,0.00016719,2]
[378678134,1754956244522,-476.86,0.00016719,2]
[378678136,1754956244532,-400.0,0.00016719,2]
[378678138,1754956244541,-679.66,0.00016719,2]
[378678140,1754956244550,-400.0,0.00016719,2]
[378678141,1754956244560,-451.66,0.00016719,2]
[378678144,1754956244569,-400.0,0.0001672,2]
[378678146,1754956244579,-400.0,0.0001672,2]
[378678148,1754956244588,-400.0,0.0001672,2]
[378678150,1754956244597,-400.0,0.0001672,2]
[378678152,1754956244607,-400.0,0.0001672,2]
[378678154,1754956244616,-400.0,0.0001672,2]
[378678156,1754956244625,-400.0,0.0001672,2]
[378678158,1754956244635,-400.0,0.0001672,2]
[378678160,1754956244644,-400.0,0.0001672,2]
[378678162,1754956244653,-400.0,0.0001672,2]
[378678164,1754956244663,-400.0,0.0001672,2]
[378678166,1754956244672,-400.0,0.0001672,2]
[378678168,1754956244684,-400.0,0.0001672,2]
[378678170,1754956244697,-400.0,0.0001672,2]
[378678172,1754956244706,-400.0,0.0001672,2]
[378678174,1754956244717,-400.0,0.0001672,2]
[378678176,1754956244727,-400.0,0.0001672,2]
[378678178,1754956244736,-400.0,0.0001672,2]
[378678180,1754956244745,-400.0,0.0001672,2]
[378678182,1754956244757,-400.0,0.0001672,2]
[378678184,1754956244766,-445.61,0.0001672,2]
[378678186,1754956244775,-400.0,0.0001672,2]
[378678188,1754956244784,-400.0,0.0001672,2]
[378678190,1754956244793,-422.48,0.0001672,2]
[378678192,1754956244802,-475.34,0.0001672,2]
[378678194,1754956244812,-400.0,0.0001672,2]
[378678196,1754956244821,-400.0,0.0001672,2]
[378678198,1754956244830,-400.0,0.0001672,2]
[378678200,1754956244840,-400.0,0.0001672,2]
[378678202,1754956244850,-400.0,0.0001672,2]
[378678204,1754956244859,-465.91,0.0001672,2]
[378678206,1754956244869,-400.0,0.0001672,2]
[378678208,1754956244878,-400.0,0.0001672,2]
[378678210,1754956244888,-400.0,0.0001672,2]
[378678212,1754956244897,-400.0,0.0001672,2]
[378678214,1754956244907,-400.0,0.0001672,2]
[378678216,1754956244916,-400.0,0.0001672,2]
[378678218,1754956244925,-400.0,0.0001672,2]
[378678220,1754956244935,-400.0,0.0001672,2]
[378678222,1754956244945,-400.0,0.0001672,2]
[378678224,1754956244955,-429.90150808,0.0001672,2]
[378678226,1754956244964,-400.0,0.0001672,2]
[378678228,1754956244973,-400.0,0.0001672,2]
[378678230,1754956244984,-400.0,0.0001672,2]
[378678232,1754956244994,-400.0,0.0001672,2]
[378678234,1754956245003,-400.0,0.0001672,2]
[378678236,1754956245014,-400.82,0.0001672,2]
[378678238,1754956245024,-400.0,0.0001672,2]
[378678241,1754956245035,-400.0,0.0001672,2]
[378678243,1754956245044,-400.0,0.0001672,2]
[378678244,1754956245054,-400.0,0.0001672,2]
[378678246,1754956245063,-400.0,0.0001672,2]
[378678248,1754956245073,-400.0,0.0001672,2]
[378678250,1754956245082,-400.0,0.0001672,2]
[378678252,1754956245091,-400.0,0.0001672,2]
[378678255,1754956245101,-400.0,0.0001672,2]
[378678257,1754956245110,-400.0,0.0001672,2]
[378678259,1754956245120,-400.0,0.0001672,2]
[378678261,1754956245129,-670.06,0.0001672,2]
[378678263,1754956245139,-400.0,0.0001672,2]
[378678265,1754956245148,-400.0,0.0001672,2]
[378678267,1754956245157,-400.0,0.0001672,2]
[378678269,1754956245167,-400.0,0.0001672,2]
[378678271,1754956245176,-400.0,0.0001672,2]
[378678273,1754956245185,-426.39,0.0001672,2]
[378678275,1754956245194,-400.0,0.0001672,2]
[378678277,1754956245203,-400.0,0.0001672,2]
[378678279,1754956245212,-400.0,0.0001672,2]
[378678281,1754956245222,-400.0,0.0001672,2]
[378678283,1754956245231,-400.0,0.0001672,2]
[378678285,1754956245240,-400.0,0.0001672,2]
[378678287,1754956245249,-400.0,0.0001672,2]
[378678289,1754956245258,-400.0,0.0001672,2]
[378678291,1754956245268,-688.273481,0.0001672,2]
[378678293,1754956245277,-201.63783595,0.0001672,2]
[378678295,1754956245286,-400.0,0.0001672,2]
[378678296,1754956245295,-400.0,0.0001672,2]
[378678298,1754956245305,-462.31,0.0001672,2]
[378678300,1754956245314,-923.94,0.0001672,2]
[378678302,1754956245324,-400.0,0.0001672,2]
[378678304,1754956245334,-400.0,0.0001672,2]
[378678306,1754956245343,-369.40168,0.0001672,2]
[378678308,1754956245353,-578.817988,0.0001672,2]
[378678310,1754956245362,-400.0,0.0001672,2]
[378678312,1754956245372,-400.0,0.0001672,2]